[Event "2026 Biel Blitz Open"]
[Site "Biel, CH"]
[Date "2026.07.19"]
[Round "6"]
[White "Kukushkin, Ivan"]
[Black "Rappazzo, Johannes"]
[Result "1-0"]
[Board "12"]
[TimeControl "180+2"]
[WhiteFideId "11634103"]
[BlackFideId "1340069"]
[WhiteElo "2265"]
[BlackElo "2032"]
[WhiteTitle "FM"]
[BlackTitle "FM"]
[WhiteClock "0:00:41"]
[BlackClock "0:00:07"]
[Variant "Standard"]
[EndDate "2026.07.19"]
[EndTime "13:29:14"]

1. e4 {[%clk 0:03:02]}  c5 {[%clk 0:03:03]} 2. Nf3 {[%clk 0:03:03]}  d6 {[%clk 0:03:05]} 3. d4 {[%clk 0:03:03]}  cxd4 {[%clk 0:03:06]}
4. Nxd4 {[%clk 0:03:04]}  Nf6 {[%clk 0:03:04]} 5. f3 {[%clk 0:03:04]}  e5 {[%clk 0:03:06]} 6. Nb3 {[%clk 0:03:05]}  Be7 {[%clk 0:03:07]}
7. c4 {[%clk 0:03:05]}  a5 {[%clk 0:03:06]} 8. Be3 {[%clk 0:03:04]}  O-O {[%clk 0:03:06]} 9. Nc3 {[%clk 0:03:05]}  a4 {[%clk 0:03:07]}
10. Nc1 {[%clk 0:03:03]}  Qa5 {[%clk 0:03:06]} 11. Qd2 {[%clk 0:03:02]}  Bd8 {[%clk 0:03:04]} 12. Be2 {[%clk 0:02:59]}  Bb6 {[%clk 0:03:05]}
13. O-O {[%clk 0:02:45]}  Nc6 {[%clk 0:02:59]} 14. Bxb6 {[%clk 0:02:35]}  Qxb6+ {[%clk 0:03:00]} 15. Kh1 {[%clk 0:02:36]}  Be6 {[%clk 0:02:56]}
16. Nd5 {[%clk 0:02:18]}  Bxd5 {[%clk 0:02:55]} 17. exd5 {[%clk 0:02:18]}  Nd4 {[%clk 0:02:52]} 18. Bd3 {[%clk 0:02:19]}  Nd7 {[%clk 0:02:46]}
19. Ne2 {[%clk 0:02:15]}  Nxe2 {[%clk 0:02:45]} 20. Qxe2 {[%clk 0:02:14]}  Nc5 {[%clk 0:02:45]} 21. Rae1 {[%clk 0:02:02]}  f5 {[%clk 0:02:36]}
22. Bb1 {[%clk 0:02:01]}  a3 {[%clk 0:02:34]} 23. b3 {[%clk 0:02:01]}  Qa5 {[%clk 0:02:29]} 24. Qc2 {[%clk 0:01:57]}  b5 {[%clk 0:02:18]}
25. cxb5 {[%clk 0:01:46]}  Qxb5 {[%clk 0:02:15]} 26. Qd2 {[%clk 0:01:46]}  Qa5 {[%clk 0:01:55]} 27. Qe3 {[%clk 0:01:45]}  Rac8 {[%clk 0:01:37]}
28. Rc1 {[%clk 0:01:43]}  Na6 {[%clk 0:01:36]} 29. Qg5 {[%clk 0:01:39]}  Rxc1 {[%clk 0:01:05]} 30. Rxc1 {[%clk 0:01:38]}  h6 {[%clk 0:01:05]}
31. Qg6 {[%clk 0:01:22]}  Qd2 {[%clk 0:01:06]} 32. Rg1 {[%clk 0:01:23]}  Rf6 {[%clk 0:01:07]} 33. Qe8+ {[%clk 0:01:24]}  Kh7 {[%clk 0:01:08]}
34. Qc8 {[%clk 0:01:19]}  e4 {[%clk 0:00:49]} 35. Qxa6 {[%clk 0:01:06]}  e3 {[%clk 0:00:49]} 36. Qd3 {[%clk 0:01:05]}  Rf7 {[%clk 0:00:29]}
37. h3 {[%clk 0:00:59]}  Qf2 {[%clk 0:00:22]} 38. Rf1 {[%clk 0:00:56]}  Qd2 {[%clk 0:00:11]} 39. Kg1 {[%clk 0:00:39]}  Re7 {[%clk 0:00:05]}
40. Qxf5+ {[%clk 0:00:39]}  Kg8 {[%clk 0:00:07]} 41. Qc8+ {[%clk 0:00:39]}  Kf7 {[%clk 0:00:06]} 42. Qf5+ {[%clk 0:00:39]}  Kg8 {[%clk 0:00:08]}
43. Qh7+ {[%clk 0:00:40]}  Kf8 {[%clk 0:00:08]} 44. Bg6 {[%clk 0:00:39]}  Re5 {[%clk 0:00:04]} 45. Qh8+ {[%clk 0:00:40]}  Ke7 {[%clk 0:00:05]}
46. Qxg7+ {[%clk 0:00:41]}  Kd8 {[%clk 0:00:07]} 47. Qf8+ {[%clk 0:00:41]} 1-0

[Event "2026 Biel Blitz Open"]
[Site "Biel, CH"]
[Date "2026.07.19"]
[Round "6"]
[White "Filipovic, Branko"]
[Black "Maruntis, Patrik-Robert"]
[Result "1-0"]
[Board "13"]
[TimeControl "180+2"]
[WhiteFideId "14507951"]
[BlackFideId "1259997"]
[WhiteElo "2109"]
[BlackElo "2167"]
[WhiteTitle "IM"]
[WhiteClock "0:02:25"]
[BlackClock "0:00:04"]
[Variant "Standard"]
[EndDate "2026.07.19"]
[EndTime "13:27:34"]

1. d4 {[%clk 0:03:03]}  d5 {[%clk 0:03:03]} 2. Bf4 {[%clk 0:03:03]}  e6 {[%clk 0:03:03]} 3. Nf3 {[%clk 0:03:03]}  Nf6 {[%clk 0:03:02]}
4. e3 {[%clk 0:03:04]}  Bd6 {[%clk 0:03:02]} 5. Nbd2 {[%clk 0:03:01]}  O-O {[%clk 0:03:01]} 6. Bd3 {[%clk 0:03:01]}  c5 {[%clk 0:03:02]}
7. c3 {[%clk 0:03:02]}  Nc6 {[%clk 0:02:57]} 8. Bg3 {[%clk 0:02:57]}  b6 {[%clk 0:02:40]} 9. e4 {[%clk 0:02:47]}  dxe4 {[%clk 0:02:33]}
10. Nxe4 {[%clk 0:02:48]}  Nxe4 {[%clk 0:02:25]} 11. Bxe4 {[%clk 0:02:49]}  Bb7 {[%clk 0:02:27]} 12. dxc5 {[%clk 0:02:44]}  Bxc5 {[%clk 0:02:12]}
13. Qa4 {[%clk 0:02:44]}  Rc8 {[%clk 0:01:58]} 14. Rd1 {[%clk 0:02:44]}  Qe8 {[%clk 0:01:43]} 15. Bxh7+ {[%clk 0:02:40]}  Kh8 {[%clk 0:00:18]}
16. Qh4 {[%clk 0:02:40]}  g5 {[%clk 0:00:04]} 17. Qh6 {[%clk 0:02:25]} 1-0

[Event "2026 Biel Blitz Open"]
[Site "Biel, CH"]
[Date "2026.07.19"]
[Round "6"]
[White "Safarli, Eltaj"]
[Black "Tkhoruk, Roman"]
[Result "1-0"]
[Board "14"]
[TimeControl "180+2"]
[WhiteFideId "13402129"]
[BlackFideId "34161589"]
[WhiteElo "2619"]
[BlackElo "2055"]
[WhiteTitle "GM"]
[WhiteClock "0:02:08"]
[BlackClock "0:00:23"]
[Variant "Standard"]
[EndDate "2026.07.19"]
[EndTime "13:25:26"]

1. e4 {[%clk 0:03:01]}  c6 {[%clk 0:03:03]} 2. d4 {[%clk 0:02:59]}  d5 {[%clk 0:03:05]} 3. exd5 {[%clk 0:03:03]}  cxd5 {[%clk 0:03:06]}
4. c4 {[%clk 0:03:03]}  Nc6 {[%clk 0:03:04]} 5. Nc3 {[%clk 0:03:03]}  Nf6 {[%clk 0:03:05]} 6. Bg5 {[%clk 0:03:01]}  dxc4 {[%clk 0:02:51]}
7. d5 {[%clk 0:03:02]}  Ne5 {[%clk 0:02:39]} 8. Qd4 {[%clk 0:03:03]}  Ng6 {[%clk 0:02:33]} 9. Nf3 {[%clk 0:02:49]}  e6 {[%clk 0:02:24]}
10. Bxc4 {[%clk 0:02:49]}  exd5 {[%clk 0:02:20]} 11. Bb5+ {[%clk 0:02:46]}  Bd7 {[%clk 0:02:18]} 12. Bxf6 {[%clk 0:02:42]}  gxf6 {[%clk 0:02:09]}
13. Bxd7+ {[%clk 0:02:39]}  Qxd7 {[%clk 0:02:07]} 14. O-O {[%clk 0:02:36]}  Be7 {[%clk 0:01:54]} 15. Nxd5 {[%clk 0:02:36]}  Rd8 {[%clk 0:01:52]}
16. Rad1 {[%clk 0:02:37]}  Qd6 {[%clk 0:01:16]} 17. Rfe1 {[%clk 0:02:34]}  Ne5 {[%clk 0:01:13]} 18. Nxe5 {[%clk 0:02:28]}  fxe5 {[%clk 0:01:13]}
19. Rxe5 {[%clk 0:02:29]}  Rg8 {[%clk 0:00:40]} 20. Rde1 {[%clk 0:02:11]}  Kf8 {[%clk 0:00:23]} 21. Rxe7 {[%clk 0:02:08]} 1-0

[Event "2026 Biel Blitz Open"]
[Site "Biel, CH"]
[Date "2026.07.19"]
[Round "6"]
[White "Fogo Esquivel, Levi Kalani Alexander"]
[Black "Vihaan Dumir"]
[Result "1-0"]
[Board "15"]
[TimeControl "180+2"]
[WhiteFideId "5183189"]
[BlackFideId "25901010"]
[WhiteElo "2219"]
[BlackElo "1965"]
[WhiteTitle "FM"]
[BlackTitle "CM"]
[WhiteClock "0:00:21"]
[BlackClock "0:00:16"]
[Variant "Standard"]
[EndDate "2026.07.19"]
[EndTime "13:29:35"]

1. e4 {[%clk 0:03:02]}  c5 {[%clk 0:03:04]} 2. Nf3 {[%clk 0:03:04]}  e6 {[%clk 0:03:05]} 3. b3 {[%clk 0:02:58]}  d5 {[%clk 0:02:55]}
4. exd5 {[%clk 0:03:00]}  exd5 {[%clk 0:02:55]} 5. d4 {[%clk 0:03:01]}  Nf6 {[%clk 0:02:54]} 6. Bb2 {[%clk 0:03:02]}  Nc6 {[%clk 0:02:52]}
7. Be2 {[%clk 0:02:56]}  cxd4 {[%clk 0:02:47]} 8. Nxd4 {[%clk 0:02:57]}  Bc5 {[%clk 0:02:46]} 9. O-O {[%clk 0:02:53]}  O-O {[%clk 0:02:47]}
10. Bf3 {[%clk 0:02:43]}  Re8 {[%clk 0:02:43]} 11. Nxc6 {[%clk 0:02:43]}  bxc6 {[%clk 0:02:44]} 12. Nc3 {[%clk 0:02:31]}  Bf5 {[%clk 0:02:37]}
13. Na4 {[%clk 0:02:32]}  Bd6 {[%clk 0:02:29]} 14. c4 {[%clk 0:02:20]}  Bc7 {[%clk 0:01:55]} 15. Rc1 {[%clk 0:02:07]}  Qd6 {[%clk 0:01:50]}
16. g3 {[%clk 0:02:08]}  Ne4 {[%clk 0:01:40]} 17. cxd5 {[%clk 0:02:05]}  cxd5 {[%clk 0:01:40]} 18. Qd4 {[%clk 0:02:04]}  Nf6 {[%clk 0:01:24]}
19. Rfe1 {[%clk 0:01:39]}  Rxe1+ {[%clk 0:01:16]} 20. Rxe1 {[%clk 0:01:40]}  Bd7 {[%clk 0:01:06]} 21. Rc1 {[%clk 0:01:31]}  a5 {[%clk 0:00:49]}
22. Rd1 {[%clk 0:01:04]}  Bc6 {[%clk 0:00:48]} 23. Qh4 {[%clk 0:00:53]}  Rd8 {[%clk 0:00:42]} 24. Nc3 {[%clk 0:00:49]}  d4 {[%clk 0:00:41]}
25. Bxc6 {[%clk 0:00:45]}  Qxc6 {[%clk 0:00:09]} 26. Rxd4 {[%clk 0:00:50]}  Re8 {[%clk 0:00:08]} 27. Rd1 {[%clk 0:00:47]}  Be5 {[%clk 0:00:09]}
28. Qa4 {[%clk 0:00:36]}  Qf3 {[%clk 0:00:07]} 29. Re1 {[%clk 0:00:23]}  h5 {[%clk 0:00:06]} 30. Qb5 {[%clk 0:00:20]}  Qf5 {[%clk 0:00:04]}
31. Nd5 {[%clk 0:00:14]}  Ng4 {[%clk 0:00:05]} 32. Qxe8+ {[%clk 0:00:14]}  Kh7 {[%clk 0:00:06]} 33. Re2 {[%clk 0:00:10]}  Qb1+ {[%clk 0:00:04]}
34. Kg2 {[%clk 0:00:11]}  Bxb2 {[%clk 0:00:05]} 35. Qe4+ {[%clk 0:00:12]}  Qxe4+ {[%clk 0:00:05]} 36. Rxe4 {[%clk 0:00:13]}  f5 {[%clk 0:00:06]}
37. Ra4 {[%clk 0:00:14]}  Ne5 {[%clk 0:00:04]} 38. Rxa5 {[%clk 0:00:15]}  Nd3 {[%clk 0:00:05]} 39. Rb5 {[%clk 0:00:14]}  Bd4 {[%clk 0:00:06]}
40. Nf4 {[%clk 0:00:12]}  Nxf2 {[%clk 0:00:04]} 41. Rd5 {[%clk 0:00:12]}  Ba7 {[%clk 0:00:05]} 42. Rxf5 {[%clk 0:00:13]}  Ng4 {[%clk 0:00:06]}
43. Rxh5+ {[%clk 0:00:14]}  Kg8 {[%clk 0:00:07]} 44. Ra5 {[%clk 0:00:15]}  Bb6 {[%clk 0:00:08]} 45. Ra6 {[%clk 0:00:17]}  Bc5 {[%clk 0:00:09]}
46. h3 {[%clk 0:00:18]}  Ne3+ {[%clk 0:00:10]} 47. Kf3 {[%clk 0:00:20]}  Nc2 {[%clk 0:00:12]} 48. Ra8+ {[%clk 0:00:20]}  Kf7 {[%clk 0:00:13]}
49. Ke4 {[%clk 0:00:21]}  Nb4 {[%clk 0:00:13]} 50. a3 {[%clk 0:00:22]}  Nc2 {[%clk 0:00:10]} 51. b4 {[%clk 0:00:21]}  Bf2 {[%clk 0:00:14]}
52. g4 {[%clk 0:00:22]}  g5 {[%clk 0:00:13]} 53. Nd3 {[%clk 0:00:21]}  Bg3 {[%clk 0:00:13]} 54. Ne5+ {[%clk 0:00:20]}  Ke6 {[%clk 0:00:14]}
55. Ra6+ {[%clk 0:00:22]}  Ke7 {[%clk 0:00:15]} 56. Rc6 {[%clk 0:00:20]}  Ne1 {[%clk 0:00:16]} 57. Kf5 {[%clk 0:00:21]}  Ng2 {[%clk 0:00:15]}
58. Rc7+ {[%clk 0:00:20]}  Kd6 {[%clk 0:00:16]} 59. Rd7# {[%clk 0:00:21]} 1-0

[Event "2026 Biel Blitz Open"]
[Site "Biel, CH"]
[Date "2026.07.19"]
[Round "6"]
[White "Harish, Neeraj"]
[Black "Rohrer, Christophe"]
[Result "0-1"]
[Board "16"]
[TimeControl "180+2"]
[WhiteFideId "30958130"]
[BlackFideId "1326546"]
[WhiteElo "1920"]
[BlackElo "2216"]
[WhiteTitle "CM"]
[BlackTitle "FM"]
[WhiteClock "0:00:04"]
[BlackClock "0:00:28"]
[Variant "Standard"]
[EndDate "2026.07.19"]
[EndTime "13:29:14"]

1. e4 {[%clk 0:03:03]}  e5 {[%clk 0:03:03]} 2. Nf3 {[%clk 0:03:03]}  Nc6 {[%clk 0:03:05]} 3. Nc3 {[%clk 0:03:04]}  Nf6 {[%clk 0:03:05]}
4. a3 {[%clk 0:03:05]}  a6 {[%clk 0:02:54]} 5. d4 {[%clk 0:03:02]}  exd4 {[%clk 0:02:54]} 6. Nxd4 {[%clk 0:03:02]}  Bc5 {[%clk 0:02:48]}
7. Nb3 {[%clk 0:02:49]}  Ba7 {[%clk 0:02:45]} 8. Qe2 {[%clk 0:02:38]}  d6 {[%clk 0:02:32]} 9. Be3 {[%clk 0:02:33]}  Bxe3 {[%clk 0:02:28]}
10. Qxe3 {[%clk 0:02:34]}  Be6 {[%clk 0:02:23]} 11. O-O-O {[%clk 0:02:31]}  Qe7 {[%clk 0:02:14]} 12. f3 {[%clk 0:02:19]}  O-O {[%clk 0:02:12]}
13. g4 {[%clk 0:02:13]}  b5 {[%clk 0:02:05]} 14. h4 {[%clk 0:01:39]}  b4 {[%clk 0:01:53]} 15. axb4 {[%clk 0:01:40]}  Nxb4 {[%clk 0:01:54]}
16. h5 {[%clk 0:01:39]}  a5 {[%clk 0:01:52]} 17. g5 {[%clk 0:01:39]}  Nd7 {[%clk 0:01:53]} 18. Nd4 {[%clk 0:01:07]}  a4 {[%clk 0:01:25]}
19. g6 {[%clk 0:01:06]}  a3 {[%clk 0:01:19]} 20. gxh7+ {[%clk 0:00:54]}  Kh8 {[%clk 0:01:18]} 21. h6 {[%clk 0:00:44]}  axb2+ {[%clk 0:01:17]}
22. Kxb2 {[%clk 0:00:44]}  g6 {[%clk 0:01:13]} 23. Nxe6 {[%clk 0:00:30]}  Qxe6 {[%clk 0:01:13]} 24. Qd4+ {[%clk 0:00:31]}  Qf6 {[%clk 0:00:53]}
25. Qxb4 {[%clk 0:00:28]}  Rfb8 {[%clk 0:00:54]} 26. Bb5 {[%clk 0:00:22]}  Rxb5 {[%clk 0:00:45]} 27. Qxb5 {[%clk 0:00:23]}  Rb8 {[%clk 0:00:46]}
28. Qxb8+ {[%clk 0:00:24]}  Nxb8 {[%clk 0:00:48]} 29. Ra1 {[%clk 0:00:14]}  Nc6 {[%clk 0:00:44]} 30. Ra3 {[%clk 0:00:08]}  Kxh7 {[%clk 0:00:40]}
31. Kb1 {[%clk 0:00:09]}  Qxf3 {[%clk 0:00:40]} 32. Rc1 {[%clk 0:00:04]}  Ne5 {[%clk 0:00:34]} 33. Nb5 {[%clk 0:00:04]}  Qxe4 {[%clk 0:00:33]}
34. Nxc7 {[%clk 0:00:05]}  Qb4+ {[%clk 0:00:32]} 35. Rb3 {[%clk 0:00:06]}  Qc5 {[%clk 0:00:31]} 36. Na6 {[%clk 0:00:04]}  Qa5 {[%clk 0:00:31]}
37. Nb4 {[%clk 0:00:05]}  Nc4 {[%clk 0:00:32]} 38. Nd3 {[%clk 0:00:05]}  Nd2+ {[%clk 0:00:31]} 39. Kb2 {[%clk 0:00:06]}  Nxb3 {[%clk 0:00:31]}
40. Kxb3 {[%clk 0:00:07]}  Kxh6 {[%clk 0:00:29]} 41. Rh1+ {[%clk 0:00:08]}  Kg7 {[%clk 0:00:30]} 42. Rf1 {[%clk 0:00:08]}  Qd5+ {[%clk 0:00:31]}
43. Kc3 {[%clk 0:00:08]}  g5 {[%clk 0:00:31]} 44. Kd2 {[%clk 0:00:06]}  Kg6 {[%clk 0:00:28]} 45. Ke3 {[%clk 0:00:04]}  f5 {[%clk 0:00:28]}
46. Rf2 {[%clk 0:00:04]}  Qe6+ {[%clk 0:00:28]} 47. Kd2 {[%clk 0:00:05]}  Qe4 {[%clk 0:00:26]} 48. Re2 {[%clk 0:00:05]}  Qd5 {[%clk 0:00:26]}
49. Rf2 {[%clk 0:00:06]}  f4 {[%clk 0:00:26]} 50. Ke2 {[%clk 0:00:06]}  Qe4+ {[%clk 0:00:27]} 51. Kd2 {[%clk 0:00:07]}  Qe3+ {[%clk 0:00:28]}
52. Kd1 {[%clk 0:00:07]}  f3 {[%clk 0:00:28]} 53. Rh2 {[%clk 0:00:04]}  Qg1+ {[%clk 0:00:28]} 0-1

[Event "2026 Biel Blitz Open"]
[Site "Biel, CH"]
[Date "2026.07.19"]
[Round "6"]
[White "Schweizer, Simon"]
[Black "Schweizer, Samuel"]
[Result "1-0"]
[Board "17"]
[TimeControl "180+2"]
[WhiteFideId "1325361"]
[BlackFideId "1325353"]
[WhiteElo "2182"]
[BlackElo "2006"]
[WhiteClock "0:01:02"]
[BlackClock "0:00:05"]
[Variant "Standard"]
[EndDate "2026.07.19"]
[EndTime "13:31:37"]

1. e4 {[%clk 0:03:02]}  a6 {[%clk 0:02:57]} 2. d4 {[%clk 0:03:03]}  e6 {[%clk 0:02:57]} 3. Nf3 {[%clk 0:03:03]}  d5 {[%clk 0:02:54]}
4. e5 {[%clk 0:03:03]}  c5 {[%clk 0:02:42]} 5. c3 {[%clk 0:03:03]}  Nc6 {[%clk 0:02:42]} 6. Bd3 {[%clk 0:03:02]}  cxd4 {[%clk 0:02:39]}
7. cxd4 {[%clk 0:03:03]}  h6 {[%clk 0:02:37]} 8. Nc3 {[%clk 0:03:04]}  Nge7 {[%clk 0:02:25]} 9. O-O {[%clk 0:03:03]}  g5 {[%clk 0:02:19]}
10. Be3 {[%clk 0:02:51]}  Bd7 {[%clk 0:02:14]} 11. Rc1 {[%clk 0:02:51]}  b5 {[%clk 0:02:09]} 12. Re1 {[%clk 0:02:45]}  Qb6 {[%clk 0:02:09]}
13. h3 {[%clk 0:02:41]}  Na5 {[%clk 0:02:05]} 14. b3 {[%clk 0:02:38]}  Nec6 {[%clk 0:02:04]} 15. Bb1 {[%clk 0:02:29]}  Ba3 {[%clk 0:02:03]}
16. Rc2 {[%clk 0:02:29]}  Nb4 {[%clk 0:02:03]} 17. Rd2 {[%clk 0:02:21]}  Rc8 {[%clk 0:02:04]} 18. Ne2 {[%clk 0:02:20]}  Rg8 {[%clk 0:01:40]}
19. Nh2 {[%clk 0:02:21]}  h5 {[%clk 0:01:25]} 20. Ng3 {[%clk 0:02:21]}  Rc1 {[%clk 0:01:25]} 21. Qxc1 {[%clk 0:02:10]}  Bxc1 {[%clk 0:01:25]}
22. Rxc1 {[%clk 0:02:10]}  g4 {[%clk 0:01:19]} 23. hxg4 {[%clk 0:02:06]}  hxg4 {[%clk 0:01:21]} 24. Nh5 {[%clk 0:02:07]}  Ke7 {[%clk 0:00:48]}
25. Nf6 {[%clk 0:02:07]}  Qd8 {[%clk 0:00:47]} 26. Nhxg4 {[%clk 0:02:01]}  Nbc6 {[%clk 0:00:41]} 27. Nxg8+ {[%clk 0:01:58]}  Qxg8 {[%clk 0:00:41]}
28. Nf6 {[%clk 0:01:58]}  Qg7 {[%clk 0:00:27]} 29. g4 {[%clk 0:01:52]}  b4 {[%clk 0:00:37]} 30. Bd3 {[%clk 0:01:50]}  Bc8 {[%clk 0:00:33]}
31. Rc5 {[%clk 0:01:47]}  Kd8 {[%clk 0:00:21]} 32. Kg2 {[%clk 0:01:43]}  Ke7 {[%clk 0:00:20]} 33. Kg3 {[%clk 0:01:38]}  Bb7 {[%clk 0:00:20]}
34. f4 {[%clk 0:01:36]}  Qf8 {[%clk 0:00:13]} 35. Rh2 {[%clk 0:01:30]}  Kd8 {[%clk 0:00:14]} 36. g5 {[%clk 0:01:26]}  Bc8 {[%clk 0:00:06]}
37. Rhc2 {[%clk 0:01:25]}  Bd7 {[%clk 0:00:07]} 38. Bxa6 {[%clk 0:01:11]}  Qe7 {[%clk 0:00:06]} 39. Bb5 {[%clk 0:01:10]}  Kc7 {[%clk 0:00:06]}
40. Rxd5 {[%clk 0:01:08]}  Bc8 {[%clk 0:00:04]} 41. Rd6 {[%clk 0:01:01]}  Bb7 {[%clk 0:00:05]} 42. d5 {[%clk 0:01:02]} 1-0

[Event "2026 Biel Blitz Open"]
[Site "Biel, CH"]
[Date "2026.07.19"]
[Round "6"]
[White "Materia, Matteo"]
[Black "Haimovich, Tal"]
[Result "0-1"]
[Board "18"]
[TimeControl "180+2"]
[WhiteFideId "45150575"]
[BlackFideId "2801698"]
[WhiteElo "1881"]
[BlackElo "2347"]
[BlackTitle "IM"]
[WhiteClock "0:00:08"]
[BlackClock "0:00:13"]
[Variant "Standard"]
[EndDate "2026.07.19"]
[EndTime "13:35:08"]

1. Nf3 {[%clk 0:03:02]}  Nf6 {[%clk 0:03:02]} 2. d4 {[%clk 0:03:02]}  d5 {[%clk 0:03:01]} 3. g3 {[%clk 0:00:00]}  c6 {[%clk 0:03:01]}
4. Bg2 {[%clk 0:00:00]}  Bg4 {[%clk 0:00:00]} 5. h3 {[%clk 0:00:00]}  Bh5 {[%clk 0:00:00]} 6. O-O {[%clk 0:00:00]}  Nbd7 {[%clk 0:00:00]}
7. Bf4 {[%clk 0:00:00]}  e6 {[%clk 0:00:00]} 8. a4 {[%clk 0:00:00]}  Be7 {[%clk 0:00:00]} 9. a5 {[%clk 0:03:02]}  O-O {[%clk 0:02:58]}
10. a6 {[%clk 0:02:58]}  b6 {[%clk 0:02:58]} 11. Nbd2 {[%clk 0:02:47]}  Rc8 {[%clk 0:02:57]} 12. Ne5 {[%clk 0:02:41]}  Nxe5 {[%clk 0:02:55]}
13. Bxe5 {[%clk 0:02:34]}  Nd7 {[%clk 0:02:54]} 14. Bf4 {[%clk 0:02:32]}  Bf6 {[%clk 0:02:52]} 15. c3 {[%clk 0:02:33]}  c5 {[%clk 0:02:50]}
16. dxc5 {[%clk 0:02:06]}  Nxc5 {[%clk 0:02:48]} 17. Be3 {[%clk 0:01:44]}  e5 {[%clk 0:02:39]} 18. g4 {[%clk 0:01:18]}  Bg6 {[%clk 0:02:38]}
19. Nb3 {[%clk 0:01:19]}  Ne4 {[%clk 0:02:22]} 20. Nd2 {[%clk 0:01:18]}  Nc5 {[%clk 0:01:54]} 21. Nb3 {[%clk 0:01:19]}  e4 {[%clk 0:01:55]}
22. Bd4 {[%clk 0:01:00]}  Be7 {[%clk 0:01:50]} 23. f4 {[%clk 0:00:39]}  exf3 {[%clk 0:01:44]} 24. Bxf3 {[%clk 0:00:36]}  Ne4 {[%clk 0:01:40]}
25. Nd2 {[%clk 0:00:22]}  Bd6 {[%clk 0:01:40]} 26. Nxe4 {[%clk 0:00:13]}  dxe4 {[%clk 0:01:39]} 27. Bg2 {[%clk 0:00:13]}  Bb8 {[%clk 0:01:34]}
28. e3 {[%clk 0:00:06]}  Qd6 {[%clk 0:01:28]} 29. Rf4 {[%clk 0:00:07]}  Qe7 {[%clk 0:01:14]} 30. Rf1 {[%clk 0:00:08]}  Rc6 {[%clk 0:01:02]}
31. Qe2 {[%clk 0:00:09]}  Bd6 {[%clk 0:00:48]} 32. Qb5 {[%clk 0:00:08]}  Rfc8 {[%clk 0:00:44]} 33. Rad1 {[%clk 0:00:08]}  h6 {[%clk 0:00:40]}
34. Qe2 {[%clk 0:00:08]}  Qe6 {[%clk 0:00:37]} 35. Qb5 {[%clk 0:00:08]}  Rc4 {[%clk 0:00:28]} 36. Qb3 {[%clk 0:00:07]}  Qe7 {[%clk 0:00:24]}
37. Qb5 {[%clk 0:00:08]}  R4c6 {[%clk 0:00:22]} 38. Qb3 {[%clk 0:00:08]}  Bc5 {[%clk 0:00:21]} 39. Qd5 {[%clk 0:00:06]}  Kh7 {[%clk 0:00:17]}
40. Qb3 {[%clk 0:00:05]}  Bxd4 {[%clk 0:00:16]} 41. Rxd4 {[%clk 0:00:05]}  Qg5 {[%clk 0:00:15]} 42. Re1 {[%clk 0:00:05]}  Re8 {[%clk 0:00:13]}
43. Qc2 {[%clk 0:00:07]}  Rce6 {[%clk 0:00:14]} 44. Re2 {[%clk 0:00:07]}  Rf6 {[%clk 0:00:13]} 45. Rf2 {[%clk 0:00:08]}  Qxe3 {[%clk 0:00:13]}
46. Rdd2 {[%clk 0:00:07]}  Qc5 {[%clk 0:00:13]} 47. Kh1 {[%clk 0:00:07]}  e3 {[%clk 0:00:13]} 48. Rxf6 {[%clk 0:00:08]}  Bxc2 {[%clk 0:00:14]}
49. Rxc2 {[%clk 0:00:06]}  gxf6 {[%clk 0:00:15]} 0-1

[Event "2026 Biel Blitz Open"]
[Site "Biel, CH"]
[Date "2026.07.19"]
[Round "6"]
[White "Tureshbayev, Anuar"]
[Black "Altenburger, Rene"]
[Result "1-0"]
[Board "19"]
[TimeControl "180+2"]
[WhiteFideId "651081709"]
[BlackFideId "1305581"]
[WhiteElo "2328"]
[BlackElo "1990"]
[WhiteTitle "FM"]
[WhiteClock "0:00:07"]
[BlackClock "0:00:21"]
[Variant "Standard"]
[EndDate "2026.07.19"]
[EndTime "13:29:05"]

1. e4 {[%clk 0:03:03]}  e5 {[%clk 0:03:01]} 2. Nf3 {[%clk 0:03:00]}  Nf6 {[%clk 0:03:03]} 3. d3 {[%clk 0:03:01]}  Nc6 {[%clk 0:03:02]}
4. g3 {[%clk 0:03:02]}  Bc5 {[%clk 0:02:59]} 5. Bg2 {[%clk 0:03:03]}  O-O {[%clk 0:02:59]} 6. O-O {[%clk 0:03:04]}  h6 {[%clk 0:02:53]}
7. c3 {[%clk 0:03:05]}  Bb6 {[%clk 0:02:46]} 8. d4 {[%clk 0:02:50]}  d6 {[%clk 0:02:40]} 9. d5 {[%clk 0:02:50]}  Ne7 {[%clk 0:02:40]}
10. Nbd2 {[%clk 0:02:28]}  Bg4 {[%clk 0:02:19]} 11. h3 {[%clk 0:02:24]}  Bd7 {[%clk 0:02:19]} 12. a4 {[%clk 0:02:20]}  a6 {[%clk 0:02:00]}
13. a5 {[%clk 0:01:50]}  Ba7 {[%clk 0:02:01]} 14. g4 {[%clk 0:01:27]}  Ng6 {[%clk 0:01:50]} 15. Re1 {[%clk 0:01:08]}  Nf4 {[%clk 0:01:46]}
16. Nf1 {[%clk 0:00:55]}  g5 {[%clk 0:00:59]} 17. Ng3 {[%clk 0:00:44]}  Qc8 {[%clk 0:00:47]} 18. Bxf4 {[%clk 0:00:27]}  gxf4 {[%clk 0:00:44]}
19. Nf5 {[%clk 0:00:27]}  Bxf5 {[%clk 0:00:43]} 20. exf5 {[%clk 0:00:28]}  Qd7 {[%clk 0:00:32]} 21. Qc2 {[%clk 0:00:26]}  Qb5 {[%clk 0:00:25]}
22. Nd2 {[%clk 0:00:21]}  Qc5 {[%clk 0:00:22]} 23. Ne4 {[%clk 0:00:20]}  Nxe4 {[%clk 0:00:22]} 24. Bxe4 {[%clk 0:00:15]}  f6 {[%clk 0:00:21]}
25. b4 {[%clk 0:00:13]}  Qb5 {[%clk 0:00:17]} 26. Qb3 {[%clk 0:00:12]}  Qe8 {[%clk 0:00:17]} 27. c4 {[%clk 0:00:12]}  h5 {[%clk 0:00:18]}
28. Bf3 {[%clk 0:00:06]}  Kf7 {[%clk 0:00:15]} 29. gxh5 {[%clk 0:00:07]}  Rg8+ {[%clk 0:00:16]} 30. Bg4 {[%clk 0:00:08]}  Qf8 {[%clk 0:00:14]}
31. Qf3 {[%clk 0:00:08]}  Qh6 {[%clk 0:00:15]} 32. Kh2 {[%clk 0:00:09]}  Rg5 {[%clk 0:00:14]} 33. b5 {[%clk 0:00:10]}  Rag8 {[%clk 0:00:13]}
34. bxa6 {[%clk 0:00:09]}  bxa6 {[%clk 0:00:14]} 35. Rab1 {[%clk 0:00:10]}  Bc5 {[%clk 0:00:15]} 36. Rb7 {[%clk 0:00:11]}  Rc8 {[%clk 0:00:16]}
37. Reb1 {[%clk 0:00:07]}  Ke7 {[%clk 0:00:17]} 38. Rb8 {[%clk 0:00:08]}  Rgg8 {[%clk 0:00:19]} 39. Rxc8 {[%clk 0:00:09]}  Rxc8 {[%clk 0:00:20]}
40. Kg2 {[%clk 0:00:09]}  Qg5 {[%clk 0:00:19]} 41. Qb3 {[%clk 0:00:08]}  e4 {[%clk 0:00:15]} 42. Re1 {[%clk 0:00:09]}  f3+ {[%clk 0:00:19]}
43. Qxf3 {[%clk 0:00:10]}  Kd7 {[%clk 0:00:19]} 44. Qxe4 {[%clk 0:00:10]}  Qg7 {[%clk 0:00:20]} 45. Qe6+ {[%clk 0:00:11]}  Kd8 {[%clk 0:00:21]}
46. Qe8# {[%clk 0:00:07]} 1-0